fUSD/lending_fUSD_20250205
["ID","MTS","AMOUNT","RATE_DAILY","PERIOD"]
[351686043,1738725032573,-438.59,0.00010778,2]
[351686044,1738725032583,-150.0,0.00010778,2]
[351686045,1738725032592,-150.0,0.00010778,2]
[351686046,1738725032601,-150.0,0.00010778,2]
[351686047,1738725032611,-150.0,0.00010778,2]
[351686048,1738725032620,-438.59,0.00010778,2]
[351686049,1738725032630,-150.0,0.00010778,2]
[351686050,1738725032641,-150.0,0.00010778,2]
[351686051,1738725032650,-150.0,0.00010778,2]
[351686052,1738725032660,-150.0,0.00010778,2]
[351686053,1738725032669,-150.0,0.00010778,2]
[351686054,1738725032678,-150.0,0.00010778,2]
[351686055,1738725032687,-150.0,0.00010778,2]
[351686056,1738725032697,-150.0,0.00010778,2]
[351686057,1738725032707,-150.0,0.00010778,2]
[351686058,1738725032716,-250.0,0.0001086,2]
[351686059,1738725032727,-371.94,0.00010891,2]
[351686060,1738725032737,-507.959,0.00010891,2]
[351686061,1738725032746,-150.0,0.00010959,2]
[351686062,1738725032755,-374.15,0.00011178,2]
[351686063,1738725032765,-862.07,0.00011178,2]
[351686064,1738725032774,-300.0,0.00011178,2]
[351686065,1738725032783,-421.15029236,0.00011194,2]
[351686066,1738725032793,-874.17251302,0.00011277,2]
[351686067,1738725032803,-500.0,0.00011299,2]
[351686068,1738725032813,-920.62,0.00011345,2]
[351686069,1738725032822,-7143.87870588,0.00011367,2]
[351686070,1738725032834,-6879.94044491,0.00011367,2]
[351686071,1738725032843,-500.0,0.00011397,2]
[351686072,1738725032852,-178.89,0.00011397,2]
[351686073,1738725032861,-413.88,0.00011397,2]
[351686074,1738725032870,-350.03,0.00011397,2]
[351686075,1738725032879,-319.01,0.00011397,2]
[351686076,1738725032888,-211.39,0.00011397,2]
[351686077,1738725032897,-500.0,0.00011397,2]
[351686078,1738725032907,-500.0,0.00011397,2]
[351686079,1738725032916,-500.0,0.00011397,2]
[351686080,1738725032926,-500.0,0.00011397,2]
[351686081,1738725032935,-603.76376964,0.00011397,2]
[351686082,1738725032944,-500.0,0.00011397,2]
[351686083,1738725032954,-161.399,0.00011398,2]
[351686084,1738725032964,-3566.112,0.00011398,2]
[351686085,1738725032975,-38311.10519561,0.00011398,2]
[351686086,1738725033003,-153537.74857451,0.00011398,2]
[351686087,1738725033012,-2500.0,0.00011399,2]
[351686088,1738725033022,-2500.0,0.00011399,2]
[351686089,1738725033031,-358.99018194,0.00011399,2]
[351686090,1738725033041,-421.3557999,0.00011399,2]
[351686091,1738725033051,-1902.0,0.000114,2]
[351686092,1738725033060,-2000.0,0.00011408,2]
[351686093,1738725033070,-1000.0,0.00011438,2]
[351686094,1738725033079,-34596.363752,0.00011468,3]
[351686095,1738725033088,-1300.485,0.00011469,2]
[351686096,1738725033098,-2022.0,0.00011469,2]
[351686097,1738725033108,-213.258,0.00011469,2]
[351686098,1738725033117,-274.554,0.00011469,2]
[351686099,1738725033127,-637.0,0.00011469,2]
[351686100,1738725033136,-574.231,0.00011469,2]
[351686101,1738725033145,-1867.0,0.00011469,2]
[351686102,1738725033155,-907.0,0.00011469,2]
[351686103,1738725033165,-2957.604,0.00011469,2]
[351686104,1738725033175,-1279.463,0.00011469,2]
[351686105,1738725033185,-857.0,0.00011469,2]
[351686106,1738725033195,-538.83,0.00011469,2]
[351686107,1738725033204,-208.278,0.00011469,2]
[351686108,1738725033215,-3924.156,0.00011469,2]
[351686109,1738725033226,-1009.159,0.00011469,2]
[351686110,1738725033238,-305.03194343,0.00011473,2]
[351686111,1738725033248,-500.31172415,0.00011473,2]
[351686112,1738725033258,-617.17811086,0.00011473,2]
[351686113,1738725033267,-207.6148526,0.00011473,2]
[351686114,1738725033277,-502.85747432,0.00011473,2]
[351686115,1738725033287,-161.31243288,0.00011473,2]
[351686116,1738725033296,-500.0,0.00011473,2]
[351686117,1738725033305,-500.32136827,0.00011498,2]
[351686118,1738725033317,-500.35428693,0.00011498,2]
[351686119,1738725033327,-526.97711104,0.00011498,2]
[351686120,1738725033336,-501.11024481,0.00011498,2]
[351686121,1738725033346,-500.86070242,0.00011498,2]
[351686122,1738725033357,-500.76592872,0.00011498,2]
[351686123,1738725033366,-500.46644044,0.00011498,2]
[351686124,1738725033376,-500.25881897,0.00011498,2]
[351686125,1738725033385,-500.57806288,0.00011498,2]
[351686126,1738725033395,-500.0,0.00011498,2]
[351686127,1738725033404,-3773.81,0.00011498,2]
[351686128,1738725033414,-500.0,0.00011498,2]
[351686129,1738725033424,-274.54751638,0.00011498,2]
[351686130,1738725033434,-203.39,0.00011498,2]
[351686131,1738725033444,-248.89273723,0.00011498,2]
[351686132,1738725033453,-454.9764481,0.00011498,2]
[351686133,1738725033462,-193.95,0.00011498,2]
[351686134,1738725033471,-435.07,0.00011498,2]
[351686135,1738725033481,-500.0,0.00011498,2]
[351686136,1738725033490,-507.20706873,0.00011499,2]
[351686137,1738725033499,-34644.16420881,0.00011499,2]
[351686141,1738725037983,-1000.0,8.851e-05,2]
[351686142,1738725037992,-1757.02000001,0.00011499,2]
[351686143,1738725038003,-539.72750753,0.00011499,2]
[351686144,1738725038086,-2812.24812227,0.00011499,2]
[351686145,1738725038193,-53725.80235056,0.00011499,2]
[351686157,1738725040173,-488.87330416,0.00011499,2]
[351686158,1738725040228,-2571.93715794,0.00011499,2]
[351686167,1738725043057,-500.0,0.00011397,2]
[351686168,1738725043066,-1110.24,0.00011469,2]
[351686169,1738725043076,-6589.76,0.00011499,2]
[351686170,1738725043216,-268.86651488,0.00011499,2]
[351686171,1738725043228,-3003.73202712,0.00011499,2]
[351686172,1738725043246,-1656.34989081,0.00011499,2]
[351686190,1738725046092,-500.0,0.00011397,2]
[351686191,1738725046101,-326832.41232729,0.00011499,2]
[351686192,1738725046112,-72617.6,0.00011499,2]
[351686194,1738725388299,427.17,8.69e-05,7]
[351686218,1738726232274,-682.56,8.607e-05,2]
[351686219,1738726232284,-1119.0,8.699e-05,2]
[351686220,1738726232293,-717.04000001,8.699e-05,2]
[351686221,1738726232383,-226.89519999,8.699e-05,2]
[351686222,1738726232393,-500.0,8.773e-05,2]
[351686223,1738726232403,-500.0,8.799e-05,2]
[351686224,1738726232413,-500.0,8.799e-05,2]
[351686225,1738726232425,-500.0,8.799e-05,2]
[351686226,1738726232435,-173.35091462,8.799e-05,2]
[351686227,1738726232445,-423.62465617,8.799e-05,2]
[351686228,1738726232457,-500.0,8.799e-05,2]
[351686229,1738726232466,-500.0,8.799e-05,2]
[351686230,1738726232476,-500.0,8.799e-05,2]
[351686231,1738726232487,-187.93,8.799e-05,2]
[351686232,1738726232496,-500.0,8.799e-05,2]
[351686233,1738726232505,-500.0,8.799e-05,2]
[351686234,1738726232515,-500.0,8.799e-05,2]
[351686235,1738726232526,-500.0,8.799e-05,2]
[351686236,1738726232535,-500.0,8.799e-05,2]
[351686237,1738726232545,-500.0,8.799e-05,2]
[351686238,1738726232555,-201.61989441,8.799e-05,2]
[351686239,1738726232564,-500.0,8.799e-05,2]
[351686240,1738726232574,-500.0,8.799e-05,2]
[351686241,1738726232592,-500.0,8.799e-05,2]
[351686242,1738726232601,-520.29094255,8.799e-05,2]
[351686243,1738726232610,-538.42128485,8.799e-05,2]
[351686244,1738726232620,-500.0,8.799e-05,2]
[351686245,1738726232630,-430.36319108,8.799e-05,2]
[351686246,1738726232640,-500.0,8.799e-05,2]
[351686247,1738726232649,-533.62332253,8.799e-05,2]
[351686248,1738726232659,-507.9875178,8.799e-05,2]
[351686250,1738726232668,-500.0,8.799e-05,2]
[351686252,1738726232678,-528.88907795,8.799e-05,2]
[351686253,1738726232687,-500.0,8.799e-05,2]
[351686255,1738726232697,-505.03742664,8.799e-05,2]
[351686257,1738726232706,-500.0,8.799e-05,2]
[351686259,1738726232715,-500.0,8.799e-05,2]
[351686260,1738726232726,-250.3904737,8.799e-05,2]
[351686261,1738726232735,-508.92075166,8.799e-05,2]
[351686262,1738726232744,-500.0,8.799e-05,2]
[351686263,1738726232753,-734164.26663665,8.8e-05,2]
[351686264,1738726232772,-1255.69190624,8.8e-05,2]
[351686265,1738726232791,-15504.74084019,8.8e-05,2]
[351686266,1738726232805,-1016.00119555,8.8e-05,2]
[351686267,1738726238086,-500.0,8.799e-05,2]
[351686268,1738726238095,-239.13582319,8.799e-05,2]
[351686269,1738726238145,-297.99807429,8.799e-05,2]
[351686270,1738726238154,-500.0,8.799e-05,2]
[351686271,1738726238164,-501.1954929,8.799e-05,2]
[351686272,1738726238174,-23549.05773821,8.8e-05,2]
[351686273,1738726238185,-1300.0,8.8e-05,2]
[351686274,1738726238196,-4941.09052972,8.8e-05,2]
[351686275,1738726238206,-3122.72056901,8.8e-05,2]
[351686276,1738726238218,-32681.16886625,8.8e-05,2]
[351686277,1738726238230,-29189.3997722,8.8e-05,2]
[351686278,1738726238265,-1365932.26945619,8.8e-05,2]
[351686279,1738726238280,-2500.0,8.851e-05,2]
[351686280,1738726238289,-178.89,8.936e-05,2]
[351686281,1738726238299,-413.88,8.936e-05,2]
[351686282,1738726238308,-350.03,8.936e-05,2]
[351686283,1738726238319,-319.01,8.936e-05,2]
[351686284,1738726238329,-211.39,8.936e-05,2]
[351686285,1738726238338,-500.0,8.936e-05,2]
[351686286,1738726238348,-500.0,8.936e-05,2]
[351686287,1738726238358,-500.0,8.936e-05,2]
[351686288,1738726238367,-603.76376964,8.936e-05,2]
[351686289,1738726238376,-500.0,8.936e-05,2]
[351686290,1738726238386,-500.0,9.073e-05,2]
[351686291,1738726238396,-500.0,9.21e-05,2]
[351686292,1738726238405,-767.068138,9.321e-05,2]
[351686293,1738726238415,-500.0,9.347e-05,2]
[351686294,1738726238425,-268570.50139297,9.37e-05,2]
[351686295,1738726238434,-500.0,9.484e-05,2]
[351686297,1738726238443,-500.0,9.621e-05,2]
[351686298,1738726238452,-500.0,9.736e-05,2]
[351686300,1738726238462,-500.0,9.758e-05,2]
[351686302,1738726238471,-500.0,9.895e-05,2]
[351686304,1738726238481,-500.0,0.00010032,2]
[351686306,1738726238490,-378.31,0.00010068,2]
[351686308,1738726238500,-367.64,0.00010068,2]
[351686310,1738726238510,-900.0,0.00010068,2]
[351686312,1738726238519,-500.0,0.00010068,2]
[351686314,1738726238530,-261.54,0.00010137,2]
[351686316,1738726238539,-500.0,0.00010169,2]
[351686317,1738726238549,-166.85,0.00010221,2]
[351686319,1738726238558,-5014.41880303,0.000103,2]
[351686320,1738726238567,-500.0,0.00010306,2]
[351686321,1738726238577,-23900.0,0.00010434,2]
[351686322,1738726238589,-250.0,0.00010439,2]
[351686323,1738726238598,-330.35533801,0.00010443,2]
[351686324,1738726238607,-439.5,0.00010541,2]
[351686325,1738726238617,-592.75,0.00010541,2]
[351686326,1738726238626,-439.5,0.00010541,2]
[351686327,1738726238636,-163.35,0.00010553,2]
[351686328,1738726238645,-448.0,0.0001057,2]
[351686329,1738726238655,-4603.0,0.000107,5]
[351686330,1738726238665,-682.56,0.00010871,2]
[351686331,1738726238675,-150.0,0.00010959,2]
[351686332,1738726238684,-500.0,0.00011,2]
[351686333,1738726238694,-501.22040914,0.00011,3]
[351686334,1738726238704,-431.47542941,0.0001102,2]
[351686335,1738726238714,-150.0,0.00011178,2]
[351686336,1738726238724,-300.0,0.00011178,2]
[351686337,1738726238734,-1000.0,0.000112,2]
[351686338,1738726238744,-160121.03260083,0.00011222,2]
[351686339,1738726238754,-160121.03260083,0.00011223,2]
[351686340,1738726238764,-1349.67896724,0.00011236,2]
[351686341,1738726238774,-25017.11585639,0.00011252,2]
[351686342,1738726238784,-25017.11585639,0.00011256,2]
[351686343,1738726238793,-25017.11585639,0.00011258,2]
[351686344,1738726238803,-1349.67896724,0.00011259,2]
[351686345,1738726238813,-1349.67896724,0.00011263,2]
[351686346,1738726238823,-1349.67896724,0.00011269,2]
[351686347,1738726238833,-160121.03260083,0.00011277,2]
[351686348,1738726238843,-160121.03260083,0.00011287,2]
[351686349,1738726238852,-25017.11585639,0.00011294,2]
[351686350,1738726238861,-1749.0,0.000113,2]
[351686351,1738726238870,-656.92560493,0.00011397,2]
[351686352,1738726238880,-1872.35506325,0.00011397,2]
[351686353,1738726238890,-1872.35506324,0.00011397,2]
[351686354,1738726238900,-150.43,0.000114,2]
[351686355,1738726238910,-900.0,0.00011438,2]
[351686356,1738726238920,-737.37789681,0.0001145,2]
[351686357,1738726238930,-639.0,0.00011469,2]
[351686358,1738726238940,-161.399,0.0001148,2]
[351686359,1738726238949,-3566.112,0.0001148,2]
[351686360,1738726238959,-500.0,0.0001148,2]
[351686361,1738726238969,-500.0,0.0001148,2]
[351686362,1738726238978,-500.0,0.0001148,2]
[351686363,1738726238988,-500.0,0.0001148,2]
[351686364,1738726238998,-500.0,0.0001148,2]
[351686365,1738726239008,-500.0,0.0001148,2]
[351686366,1738726239018,-500.0,0.0001148,2]
[351686367,1738726239028,-500.0,0.0001148,2]
[351686368,1738726239037,-500.0,0.0001148,2]
[351686369,1738726239047,-500.0,0.0001148,2]
[351686370,1738726239057,-500.0,0.0001148,2]
[351686371,1738726239067,-500.0,0.0001148,2]
[351686372,1738726239076,-500.0,0.0001148,2]
[351686373,1738726239315,-500.0,0.0001148,2]
[351686374,1738726239325,-500.0,0.0001148,2]
[351686375,1738726239336,-500.0,0.0001148,2]
[351686376,1738726239345,-776.0,0.0001148,2]
[351686377,1738726239354,-500.0,0.0001148,2]
[351686378,1738726239364,-500.0,0.0001148,2]
[351686379,1738726239373,-500.0,0.0001148,2]
[351686380,1738726239383,-500.0,0.0001148,2]
[351686381,1738726239392,-500.0,0.0001148,2]
[351686382,1738726239402,-500.0,0.0001148,2]
[351686383,1738726239411,-500.0,0.0001148,2]
[351686384,1738726239420,-500.0,0.0001148,2]
[351686385,1738726239429,-500.0,0.0001148,2]
[351686386,1738726239438,-500.0,0.0001148,2]
[351686387,1738726239447,-500.0,0.0001148,2]
[351686388,1738726239457,-500.0,0.0001148,2]
[351686389,1738726239466,-500.0,0.0001148,2]
[351686390,1738726239475,-500.0,0.0001148,2]
[351686391,1738726239485,-500.0,0.0001148,2]
[351686392,1738726239494,-500.0,0.0001148,2]
[351686393,1738726239503,-500.0,0.0001148,2]
[351686394,1738726239512,-500.0,0.0001148,2]
[351686395,1738726239522,-500.0,0.0001148,2]
[351686396,1738726239535,-500.0,0.0001148,2]
[351686397,1738726239544,-500.0,0.0001148,2]
[351686398,1738726239554,-500.0,0.0001148,2]
[351686399,1738726239563,-500.0,0.0001148,2]
[351686400,1738726239572,-500.0,0.0001148,2]
[351686401,1738726239584,-500.0,0.0001148,2]
[351686402,1738726239598,-500.0,0.0001148,2]
[351686403,1738726239607,-500.0,0.0001148,2]
[351686404,1738726239615,-500.0,0.0001148,2]
[351686405,1738726239626,-500.0,0.0001148,2]
[351686406,1738726239636,-500.0,0.0001148,2]
[351686407,1738726239646,-500.0,0.0001148,2]
[351686408,1738726239656,-500.0,0.0001148,2]
[351686409,1738726239666,-500.0,0.0001148,2]
[351686410,1738726239675,-500.0,0.0001148,2]
[351686411,1738726239684,-500.0,0.0001148,2]
[351686412,1738726239693,-500.0,0.0001148,2]
[351686413,1738726239703,-500.0,0.0001148,2]
[351686414,1738726239712,-500.0,0.0001148,2]
[351686415,1738726239723,-500.0,0.0001148,2]
[351686416,1738726239733,-500.0,0.0001148,2]
[351686417,1738726239743,-500.0,0.0001148,2]
[351686418,1738726239752,-503.0,0.0001148,2]
[351686419,1738726239762,-500.0,0.0001148,2]
[351686420,1738726239771,-500.0,0.0001148,2]
[351686421,1738726239782,-500.0,0.0001148,2]
[351686422,1738726239791,-500.0,0.0001148,2]
[351686423,1738726239802,-500.0,0.0001148,2]
[351686424,1738726239811,-500.0,0.0001148,2]
[351686425,1738726239820,-500.0,0.0001148,2]
[351686426,1738726239829,-500.0,0.0001148,2]
[351686427,1738726239838,-500.0,0.0001148,2]
[351686428,1738726239849,-500.0,0.0001148,2]
[351686429,1738726239858,-500.0,0.0001148,2]
[351686430,1738726239868,-500.0,0.0001148,2]
[351686431,1738726239877,-504.0,0.0001148,2]
[351686432,1738726239886,-500.0,0.0001148,2]
[351686433,1738726239896,-500.0,0.0001148,2]
[351686434,1738726239905,-500.0,0.0001148,2]
[351686435,1738726239915,-500.0,0.0001148,2]
[351686436,1738726239924,-500.0,0.0001148,2]
[351686437,1738726239933,-500.0,0.0001148,2]
[351686438,1738726239943,-500.0,0.0001148,2]
[351686439,1738726239953,-500.0,0.0001148,2]
[351686440,1738726239963,-500.0,0.0001148,2]
[351686441,1738726239973,-500.0,0.0001148,2]
[351686442,1738726239983,-500.0,0.0001148,2]
[351686443,1738726239992,-500.0,0.0001148,2]
[351686444,1738726240002,-500.0,0.0001148,2]
[351686445,1738726240012,-20488.64799093,0.0001148,2]
[351686446,1738726240021,-378.8951097,0.0001148,2]
[351686447,1738726240032,-271.93807833,0.00011496,2]
[351686448,1738726240043,-500.0,0.00011496,2]
[351686449,1738726240053,-500.0,0.00011496,2]
[351686450,1738726240063,-500.0,0.00011496,2]
[351686451,1738726240073,-500.0,0.00011497,2]
[351686452,1738726240082,-229.23881265,0.00011497,3]
[351686453,1738726240092,-500.0,0.00011497,2]
[351686454,1738726240102,-426.01844767,0.00011497,2]
[351686455,1738726240112,-186.40396783,0.00011497,2]
[351686456,1738726240121,-500.0,0.00011497,2]
[351686457,1738726240131,-500.0,0.00011497,2]
[351686458,1738726240141,-500.0,0.00011497,2]
[351686459,1738726240150,-511.5,0.00011497,2]
[351686460,1738726240159,-500.0,0.00011497,2]
[351686461,1738726240169,-500.0,0.00011497,2]
[351686462,1738726240179,-500.0,0.00011497,2]
[351686463,1738726240188,-500.0,0.00011497,2]
[351686464,1738726240197,-500.0,0.00011497,2]
[351686465,1738726240207,-500.0,0.00011497,2]
[351686466,1738726240217,-542.15282688,0.00011497,2]
[351686467,1738726240226,-460.96993433,0.00011497,2]
[351686468,1738726240235,-184.4,0.00011497,2]
[351686469,1738726240244,-619.19653046,0.00011497,2]
[351686470,1738726240254,-500.0,0.00011497,2]
[351686471,1738726240264,-500.0,0.00011497,2]
[351686472,1738726240273,-500.0,0.00011497,2]
[351686473,1738726240282,-500.0,0.00011497,2]
[351686474,1738726240292,-1340.0,0.00011497,2]
[351686475,1738726240302,-500.39736219,0.00011498,2]
[351686476,1738726240312,-1412.44014539,0.00011498,2]
[351686477,1738726240321,-3616.57,0.00011498,2]
[351686478,1738726240330,-368.68,0.00011499,2]
[351686479,1738726240340,-368.52,0.00011499,2]
[351686480,1738726240349,-4000.0,0.00011499,2]
[351686481,1738726240359,-155.460344,0.00011499,2]
[351686482,1738726240368,-3016.43589161,0.000115,2]
[351686483,1738726240377,-1370206.8368363,0.000115,10]
[351686484,1738726240558,-4823.27885289,0.000115,10]
[351686485,1738726240575,-38020.55194168,0.000115,10]
[351686487,1738726240666,-502.98568793,8.799e-05,2]
[351686488,1738726240675,-506.82624511,8.799e-05,2]
[351686489,1738726240685,-518.21,0.00011498,2]
[351686490,1738726240694,-136212.34110884,0.000115,10]
[351686492,1738726240705,-1943.03650745,0.000115,10]
[351686494,1738726240715,-61721.59609106,0.000115,10]
[351686495,1738726240726,-182077.17684818,0.000115,10]
[351686496,1738726240737,-9415.21058865,0.000115,10]
[351686497,1738726240749,-589.53129681,0.000115,10]
[351686498,1738726240766,-2170.14205106,0.000115,10]
[351686499,1738726240779,-534.85879025,0.000115,10]
[351686500,1738726240789,-917.65074819,0.000115,10]
[351686510,1738726243249,-500.0,8.799e-05,2]
[351686511,1738726243259,-1000.0,0.00010931,2]
[351686512,1738726243268,-203.55478354,0.000115,10]
[351686513,1738726243279,-958.930518,0.000115,10]
[351686514,1738726243306,-978.577959,0.000115,10]
[351686515,1738726243364,-5374.32803794,0.000115,10]
[351686516,1738726243375,-860.004999,0.000115,10]
[351686517,1738726243597,-644.73,0.000115,10]
[351686528,1738726246232,-439.5,0.00010541,2]
[351686529,1738726246241,-287.54806406,0.000115,10]
[351686530,1738726246290,-82800.0,0.000115,10]
[351686531,1738726246301,-8540.22194455,0.000115,10]
[351686532,1738726246403,-36543.6328268,0.000115,10]
[351686541,1738727150126,-648.38,8.219e-05,2]
[351686542,1738727150147,-264.857,8.256e-05,2]
[351686543,1738727150169,-1502.8333,8.699e-05,2]
[351686544,1738727150189,-150.0,8.767e-05,2]
[351686545,1738727150211,-3143.54423142,8.798e-05,2]
[351686546,1738727150232,-150.0,8.798e-05,2]
[351686547,1738727150252,-3616.57,8.799e-05,2]
[351686548,1738727150272,-500.0,8.799e-05,2]
[351686549,1738727150294,-288.28,8.799e-05,2]
[351686550,1738727150314,-379.07708629,8.799e-05,2]
[351686551,1738727150336,-488.37852096,8.799e-05,2]
[351686552,1738727150357,-500.0,8.799e-05,2]
[351686553,1738727150377,-624.12495579,8.799e-05,2]
[351686554,1738727150398,-500.0,8.799e-05,2]
[351686555,1738727150418,-437.70835633,8.799e-05,2]
[351686556,1738727150438,-500.0,8.799e-05,2]
[351686557,1738727150458,-500.0,8.799e-05,2]
[351686558,1738727150478,-500.0,8.799e-05,2]
[351686559,1738727150498,-500.0,8.799e-05,2]
[351686560,1738727150719,-500.0,8.799e-05,2]
[351686561,1738727150740,-500.0,8.799e-05,2]
[351686562,1738727150760,-500.0,8.799e-05,2]
[351686563,1738727150780,-500.0,8.799e-05,2]
[351686564,1738727150802,-500.0,8.799e-05,2]
[351686565,1738727150822,-500.0,8.799e-05,2]
[351686566,1738727150842,-500.0,8.799e-05,2]
[351686567,1738727150863,-500.0,8.799e-05,2]
[351686568,1738727150884,-511.34510404,8.799e-05,2]
[351686569,1738727150910,-500.0,8.799e-05,2]
[351686570,1738727150931,-500.0,8.799e-05,2]
[351686571,1738727150952,-500.0,8.799e-05,2]
[351686572,1738727150973,-500.0,8.799e-05,2]
[351686573,1738727150998,-500.0,8.799e-05,2]
[351686574,1738727151019,-604.84,8.799e-05,2]
[351686575,1738727151040,-500.0,8.799e-05,2]
[351686576,1738727151061,-500.0,8.799e-05,2]
[351686577,1738727151081,-500.0,8.799e-05,2]
[351686578,1738727151101,-500.0,8.799e-05,2]
[351686579,1738727151122,-500.0,8.799e-05,2]
[351686580,1738727151142,-500.0,8.799e-05,2]
[351686581,1738727151163,-500.0,8.799e-05,2]
[351686582,1738727151182,-500.0,8.799e-05,2]
[351686583,1738727151203,-500.0,8.799e-05,2]
[351686584,1738727151225,-500.0,8.799e-05,2]
[351686585,1738727151245,-500.0,8.799e-05,2]
[351686586,1738727151266,-500.0,8.799e-05,2]
[351686587,1738727151287,-500.0,8.799e-05,2]
[351686588,1738727151311,-500.0,8.799e-05,2]
[351686589,1738727151331,-500.0,8.799e-05,2]
[351686590,1738727151354,-522.9145,8.799e-05,2]
[351686591,1738727151374,-500.0,8.799e-05,2]
[351686592,1738727151395,-500.0,8.799e-05,2]
[351686593,1738727151417,-500.0,8.799e-05,2]
[351686594,1738727151438,-500.0,8.799e-05,2]
[351686595,1738727151458,-215.0377,8.836e-05,2]
[351686596,1738727151478,-10408.6191,8.836e-05,2]
[351686597,1738727151498,-3616.57,8.936e-05,2]
[351686598,1738727151519,-500.0,8.936e-05,2]
[351686599,1738727151541,-505.84685623,8.936e-05,2]
[351686600,1738727151561,-3616.57,9.073e-05,2]
[351686601,1738727151582,-500.0,9.073e-05,2]
[351686602,1738727151602,-3616.57,9.21e-05,2]
[351686603,1738727151622,-500.0,9.21e-05,2]
[351686604,1738727151642,-3616.57,9.347e-05,2]
[351686605,1738727151663,-500.0,9.347e-05,2]
[351686606,1738727151684,-3616.57,9.484e-05,2]
[351686607,1738727151705,-500.0,9.484e-05,2]
[351686608,1738727151727,-908.46,9.504e-05,2]
[351686609,1738727151747,-2292.13,9.526e-05,2]
[351686610,1738727151769,-1718.1,9.532e-05,2]
[351686611,1738727151791,-2773.23,9.532e-05,2]
[351686612,1738727151811,-541.48,9.535e-05,2]
[351686613,1738727151831,-694.05,9.539e-05,2]
[351686614,1738727151852,-3174.46,9.541e-05,2]
[351686615,1738727151872,-3109.84,9.562e-05,2]
[351686616,1738727151894,-170.29,9.569e-05,2]
[351686617,1738727151918,-575.85,9.584e-05,2]
[351686618,1738727151939,-233.39,9.603e-05,2]
[351686619,1738727151960,-2883.54400485,9.621e-05,2]
[351686620,1738727157173,-733.02599515,9.621e-05,2]
[351686621,1738727157194,-500.0,9.621e-05,2]
[351686622,1738727157215,-250.0,9.624e-05,2]
[351686623,1738727157236,-953.11,9.667e-05,2]
[351686624,1738727157257,-255.0,9.678e-05,2]
[351686625,1738727157277,-500.0,9.679e-05,2]
[351686626,1738727157299,-1685.92,9.705e-05,2]
[351686627,1738727157319,-7516.96,9.705e-05,2]
[351686628,1738727157340,-241.73,9.708e-05,2]
[351686629,1738727157360,-3616.57,9.758e-05,2]
[351686630,1738727157381,-500.0,9.758e-05,2]
[351686631,1738727157401,-335.23,9.806e-05,2]
[351686632,1738727157420,-3616.57,9.895e-05,2]
[351686633,1738727157440,-500.0,9.895e-05,2]
[351686634,1738727157461,-180.56,9.978e-05,2]
[351686635,1738727157480,-3616.57,0.00010032,2]
[351686636,1738727157502,-500.0,0.00010032,2]
[351686637,1738727157522,-800.0,0.00010068,2]
[351686638,1738727157542,-1533.53,0.00010068,2]
[351686639,1738727157564,-505.84685621,0.00010118,2]
[351686640,1738727157584,-163.22,0.00010125,2]
[351686641,1738727157604,-3616.57,0.00010169,2]
[351686642,1738727157624,-500.0,0.00010169,2]
[351686643,1738727157644,-3616.57,0.00010306,2]
[351686644,1738727157665,-500.0,0.00010306,2]
[351686645,1738727157685,-3616.57,0.00010443,2]
[351686646,1738727157707,-500.0,0.00010443,2]
[351686647,1738727157727,-648.38,0.00010458,2]
[351686648,1738727157748,-322.0,0.00010548,2]
[351686649,1738727157768,-3616.57,0.0001058,2]
[351686650,1738727157789,-500.0,0.0001058,2]
[351686651,1738727157811,-3616.57,0.00010717,2]